fUST/lending_fUST_20250105
["ID","MTS","AMOUNT","RATE_DAILY","PERIOD"]
[347726044,1736082646779,-500.0,0.00021917,3]
[347726046,1736082646789,-500.0,0.00021917,3]
[347726048,1736082646798,-954.46,0.00021917,3]
[347726050,1736082646808,-730.44,0.00021917,3]
[347726052,1736082646818,-403.54367805,0.00021917,3]
[347726054,1736082646827,-2075.22,0.00021917,3]
[347726056,1736082646837,-9736.03,0.00021917,3]
[347726058,1736082646847,-500.0,0.00021917,3]
[347726060,1736082646856,-500.0,0.00021917,3]
[347726062,1736082646865,-523.15,0.00021917,3]
[347726064,1736082646875,-2343.35,0.00021917,3]
[347726066,1736082646884,-1142.32,0.00021917,3]
[347726068,1736082646893,-500.0,0.00021917,3]
[347726070,1736082646903,-500.0,0.00021917,3]
[347726072,1736082646912,-1119.04,0.00021917,3]
[347726074,1736082646921,-500.0,0.00021917,3]
[347726076,1736082646930,-500.0,0.00021917,3]
[347726078,1736082646940,-761.4,0.00021917,3]
[347726080,1736082646950,-500.0,0.00021917,3]
[347726083,1736082646960,-500.0,0.00021917,3]
[347726085,1736082646969,-500.0,0.00021917,3]
[347726087,1736082646979,-500.0,0.00021917,3]
[347726089,1736082646988,-829.06,0.00021917,3]
[347726091,1736082646998,-500.0,0.00021917,3]
[347726093,1736082647007,-500.0,0.00021917,3]
[347726095,1736082647016,-500.0,0.00021917,3]
[347726097,1736082647026,-789.32,0.00021917,3]
[347726099,1736082647036,-500.0,0.00021917,3]
[347726101,1736082647045,-1561.65,0.00021917,3]
[347726103,1736082647055,-1561.65,0.00021917,3]
[347726105,1736082647064,-500.0,0.00021917,3]
[347726107,1736082647073,-500.0,0.00022191,3]
[347726109,1736082647083,-338.61198913,0.00022191,3]
[347726111,1736082647092,-448.92890661,0.00022191,3]
[347726113,1736082647102,-954.46,0.00022191,3]
[347726115,1736082647111,-730.44,0.00022191,3]
[347726117,1736082647121,-2075.22,0.00022191,3]
[347726119,1736082647130,-9736.03,0.00022191,3]
[347726121,1736082647141,-500.0,0.00022191,3]
[347726123,1736082647150,-500.0,0.00022191,3]
[347726125,1736082647159,-523.15,0.00022191,3]
[347726127,1736082647169,-2343.35,0.00022191,3]
[347726129,1736082647178,-500.0,0.00022191,3]
[347726131,1736082647188,-1142.32,0.00022191,3]
[347726133,1736082647197,-500.0,0.00022191,3]
[347726135,1736082647207,-1119.04,0.00022191,3]
[347726138,1736082647216,-500.0,0.00022191,3]
[347726140,1736082647226,-500.0,0.00022191,3]
[347726142,1736082647236,-761.4,0.00022191,3]
[347726144,1736082647246,-500.0,0.00022191,3]
[347726146,1736082647255,-500.0,0.00022191,3]
[347726148,1736082647265,-500.0,0.00022191,3]
[347726150,1736082647275,-207.72717103,0.00022191,3]
[347726152,1736082647283,-829.06,0.00022191,3]
[347726154,1736082647293,-500.0,0.00022191,3]
[347726156,1736082647303,-500.0,0.00022191,3]
[347726158,1736082647313,-500.0,0.00022191,3]
[347726160,1736082647322,-789.32,0.00022191,3]
[347726162,1736082647337,-500.0,0.00022191,3]
[347726164,1736082647347,-1561.65,0.00022191,3]
[347726166,1736082647356,-500.0,0.00022191,3]
[347726168,1736082647366,-300.0,0.000223,10]
[347726171,1736082647377,-167.63832415,0.000223,2]
[347726173,1736082647387,-181.1009047,0.00022465,3]
[347726174,1736082647396,-954.46,0.00022465,3]
[347726177,1736082647407,-730.44,0.00022465,3]
[347726179,1736082647418,-2075.22,0.00022465,3]
[347726181,1736082647428,-9736.03,0.00022465,3]
[347726183,1736082647437,-500.0,0.00022465,3]
[347726185,1736082647447,-500.0,0.00022465,3]
[347726187,1736082647457,-523.15,0.00022465,3]
[347726189,1736082647467,-2343.35,0.00022465,3]
[347726191,1736082647476,-500.0,0.00022465,3]
[347726193,1736082647486,-1142.32,0.00022465,3]
[347726195,1736082647495,-500.0,0.00022465,3]
[347726197,1736082647505,-1119.04,0.00022465,3]
[347726199,1736082647517,-500.0,0.00022465,3]
[347726201,1736082647527,-500.0,0.00022465,3]
[347726203,1736082647536,-761.4,0.00022465,3]
[347726205,1736082647546,-500.0,0.00022465,3]
[347726207,1736082647556,-500.0,0.00022465,3]
[347726209,1736082647565,-500.0,0.00022465,3]
[347726211,1736082647575,-829.06,0.00022465,3]
[347726213,1736082647585,-500.0,0.00022465,3]
[347726215,1736082647595,-500.0,0.00022465,3]
[347726217,1736082647604,-294.9421295,0.00022465,3]
[347726219,1736082647614,-789.32,0.00022465,3]
[347726221,1736082647624,-500.0,0.00022465,3]
[347726223,1736082647633,-1561.65,0.00022465,3]
[347726225,1736082647643,-353.01630087,0.00022465,3]
[347726227,1736082647653,-195.5189044,0.00022506,2]
[347726229,1736082647662,-15612.95753368,0.00022624,2]
[347726231,1736082647672,-191.71363638,0.00022644,2]
[347726233,1736082647682,-954.46,0.00022739,3]
[347726235,1736082647691,-730.44,0.00022739,3]
[347726238,1736082647701,-2075.22,0.00022739,3]
[347726240,1736082647710,-9736.03,0.00022739,3]
[347726242,1736082647720,-632.9750179,0.00022739,3]
[347726244,1736082647729,-500.0,0.00022739,3]
[347726246,1736082647739,-523.15,0.00022739,3]
[347726248,1736082647749,-2343.35,0.00022739,3]
[347726250,1736082647758,-500.0,0.00022739,3]
[347726252,1736082647768,-1142.32,0.00022739,3]
[347726254,1736082647777,-500.0,0.00022739,3]
[347726256,1736082647786,-1119.04,0.00022739,3]
[347726258,1736082647796,-500.0,0.00022739,3]
[347726260,1736082647806,-467.80307459,0.00022739,3]
[347726262,1736082647816,-761.4,0.00022739,3]
[347726264,1736082647826,-500.0,0.00022739,3]
[347726266,1736082647835,-500.0,0.00022739,3]
[347726268,1736082647845,-500.0,0.00022739,3]
[347726270,1736082647855,-829.06,0.00022739,3]
[347726272,1736082647865,-500.0,0.00022739,3]
[347726274,1736082647874,-500.0,0.00022739,3]
[347726276,1736082647884,-789.32,0.00022739,3]
[347726278,1736082647894,-500.0,0.00022739,3]
[347726280,1736082647903,-3373.51880822,0.00022744,2]
[347726283,1736082647913,-41515.05637349,0.00022744,2]
[347726285,1736082647922,-515746.39154236,0.00022744,10]
[347726287,1736082647940,-17509.20952992,0.00022744,10]
[347726289,1736082647951,-345.450003,0.00022744,10]
[347726292,1736082647963,-1260.62651095,0.00022744,10]
[347726302,1736082648050,-500.0,0.00019178,2]
[347726304,1736082648060,-500.0,0.00019452,3]
[347726306,1736082648069,-500.0,0.00019726,3]
[347726308,1736082648079,-340.707,0.00019981,2]
[347726310,1736082648088,-7817.80528529,0.00022744,10]
[347726313,1736082648100,-1762.5000065,0.00022744,10]
[347726491,1736083470962,289.367159,0.00013973,2]
[347726519,1736083832445,-1391.93078907,0.00017888,2]
[347726520,1736083832455,-685.013,0.00018252,2]
[347726521,1736083832464,-300.0,0.00018999,2]
[347726522,1736083832474,-64000.49345235,0.00019,2]
[347726523,1736083832483,-185.80495885,0.00019078,2]
[347726524,1736083832492,-500.0,0.00019177,5]
[347726525,1736083832501,-293.76756285,0.00019177,2]
[347726527,1736083832510,-500.0,0.00019177,2]
[347726529,1736083832520,-525.06097868,0.00019177,2]
[347726530,1736083832529,-599.29387817,0.00019177,2]
[347726532,1736083832538,-309.67436432,0.00019177,2]
[347726534,1736083832548,-650.55210854,0.00019177,2]
[347726535,1736083832557,-550.86606117,0.00019177,2]
[347726536,1736083832567,-500.45572672,0.00019178,2]
[347726537,1736083832576,-502.7644078,0.00019178,2]
[347726538,1736083832586,-500.0,0.00019178,2]
[347726539,1736083832595,-507.11325474,0.00019178,2]
[347726540,1736083832605,-520.89925185,0.00019178,2]
[347726541,1736083832615,-500.0,0.00019178,2]
[347726542,1736083832624,-500.0,0.00019178,2]
[347726543,1736083832634,-500.0,0.00019178,2]
[347726544,1736083832644,-500.0,0.00019178,2]
[347726545,1736083832653,-500.0,0.00019178,2]
[347726546,1736083832663,-500.0,0.00019178,2]
[347726547,1736083832672,-500.0,0.00019178,2]
[347726548,1736083832682,-500.0,0.00019178,2]
[347726549,1736083832692,-500.0,0.00019178,2]
[347726550,1736083832701,-500.0,0.00019178,2]
[347726551,1736083832711,-500.0,0.00019178,2]
[347726552,1736083832721,-500.0,0.00019178,2]
[347726553,1736083832730,-500.0,0.00019178,2]
[347726554,1736083832740,-500.0,0.00019178,2]
[347726555,1736083832749,-500.0,0.00019178,2]
[347726556,1736083832759,-540.97872375,0.00019178,2]
[347726557,1736083832768,-500.0,0.00019178,2]
[347726558,1736083832778,-500.0,0.00019178,2]
[347726559,1736083832787,-500.0,0.00019178,2]
[347726560,1736083832797,-500.0,0.00019178,2]
[347726561,1736083832806,-500.0,0.00019178,2]
[347726562,1736083832816,-500.0,0.00019178,2]
[347726563,1736083832825,-500.0,0.00019178,2]
[347726564,1736083832835,-501.85716152,0.00019178,2]
[347726565,1736083832845,-500.0,0.00019178,2]
[347726566,1736083832856,-500.0,0.00019178,2]
[347726567,1736083832866,-500.0,0.00019178,2]
[347726568,1736083832875,-864.67,0.00019178,2]
[347726569,1736083832886,-500.0,0.00019178,2]
[347726570,1736083832897,-500.0,0.00019178,2]
[347726571,1736083832906,-500.0,0.00019178,2]
[347726572,1736083832915,-500.0,0.00019178,2]
[347726573,1736083832927,-500.0,0.00019178,2]
[347726574,1736083832940,-500.0,0.00019178,2]
[347726575,1736083832949,-500.0,0.00019178,2]
[347726576,1736083832959,-500.0,0.00019178,2]
[347726577,1736083832969,-500.0,0.00019178,2]
[347726578,1736083832979,-500.0,0.00019178,2]
[347726579,1736083832988,-503.43070139,0.00019178,2]
[347726580,1736083832998,-500.0,0.00019178,2]
[347726581,1736083833008,-976.4,0.00019178,2]
[347726582,1736083833017,-500.0,0.00019178,2]
[347726583,1736083833027,-500.0,0.00019178,2]
[347726584,1736083833036,-500.0,0.00019178,2]
[347726585,1736083833046,-522.19516759,0.00019178,2]
[347726586,1736083833056,-500.0,0.00019178,2]
[347726587,1736083833066,-500.0,0.00019178,2]
[347726588,1736083833076,-324.61837508,0.00019178,2]
[347726589,1736083833086,-500.0,0.00019178,2]
[347726590,1736083833097,-372.82484951,0.00019178,2]
[347726591,1736083833108,-500.0,0.00019178,2]
[347726592,1736083833118,-500.0,0.00019178,2]
[347726593,1736083833127,-500.0,0.00019178,2]
[347726594,1736083833137,-500.0,0.00019178,2]
[347726595,1736083833149,-500.0,0.00019178,2]
[347726596,1736083833159,-500.0,0.00019178,2]
[347726597,1736083833168,-500.0,0.00019178,2]
[347726598,1736083833178,-500.0,0.00019178,2]
[347726599,1736083833187,-500.0,0.00019178,2]
[347726600,1736083833197,-500.0,0.00019178,2]
[347726601,1736083833207,-503.76633046,0.00019178,2]
[347726602,1736083833217,-502.63376976,0.00019178,2]
[347726603,1736083833227,-500.0,0.00019178,2]
[347726604,1736083833237,-500.0,0.00019178,2]
[347726605,1736083833247,-500.0,0.00019178,2]
[347726606,1736083833256,-4056.68,0.00019178,2]
[347726607,1736083833267,-500.0,0.00019178,2]
[347726608,1736083833278,-500.0,0.00019178,2]
[347726609,1736083833288,-500.0,0.00019178,2]
[347726610,1736083833298,-500.0,0.00019178,2]
[347726611,1736083833307,-500.0,0.00019178,2]
[347726612,1736083833317,-500.0,0.00019178,2]
[347726613,1736083833331,-557.12,0.00019178,2]
[347726614,1736083833342,-500.0,0.00019178,2]
[347726615,1736083833351,-500.0,0.00019178,2]
[347726616,1736083833361,-482.60843141,0.00019178,2]
[347726617,1736083833371,-500.0,0.00019178,2]
[347726618,1736083833381,-500.0,0.00019178,2]
[347726619,1736083833390,-500.0,0.00019178,2]
[347726620,1736083833400,-203.29,0.000192,2]
[347726621,1736083833412,-500.0,0.00019452,3]
[347726622,1736083833421,-500.0,0.00019452,3]
[347726623,1736083833432,-864.67,0.00019452,3]
[347726624,1736083833441,-500.0,0.00019452,3]
[347726625,1736083833451,-500.0,0.00019452,3]
[347726626,1736083833461,-500.0,0.00019452,3]
[347726627,1736083833471,-500.0,0.00019452,3]
[347726628,1736083833481,-500.0,0.00019452,3]
[347726629,1736083833490,-976.4,0.00019452,3]
[347726630,1736083833500,-500.0,0.00019452,3]
[347726631,1736083833509,-500.0,0.00019452,3]
[347726632,1736083833519,-500.0,0.00019452,3]
[347726633,1736083833528,-500.0,0.00019452,3]
[347726634,1736083833539,-500.0,0.00019452,3]
[347726635,1736083833549,-500.0,0.00019452,3]
[347726636,1736083833558,-500.0,0.00019452,3]
[347726637,1736083833567,-500.0,0.00019452,3]
[347726638,1736083833577,-4056.68,0.00019452,3]
[347726639,1736083833587,-500.0,0.00019452,3]
[347726640,1736083833597,-500.0,0.00019452,3]
[347726641,1736083833606,-500.0,0.00019452,3]
[347726642,1736083833616,-500.0,0.00019726,3]
[347726643,1736083833625,-308.42112137,0.00019726,3]
[347726644,1736083833635,-864.67,0.00019726,3]
[347726645,1736083833645,-500.0,0.00019726,3]
[347726646,1736083833655,-500.0,0.00019726,3]
[347726647,1736083833664,-500.0,0.00019726,3]
[347726648,1736083833673,-500.0,0.00019726,3]
[347726649,1736083833684,-500.0,0.00019726,3]
[347726650,1736083833694,-976.4,0.00019726,3]
[347726651,1736083833704,-500.0,0.00019726,3]
[347726652,1736083833714,-500.0,0.00019726,3]
[347726653,1736083833724,-500.0,0.00019726,3]
[347726654,1736083833734,-500.0,0.00019726,3]
[347726655,1736083833743,-500.0,0.00019726,3]
[347726656,1736083833753,-500.0,0.00019726,3]
[347726657,1736083833763,-500.0,0.00019726,3]
[347726658,1736083833773,-500.0,0.00019726,3]
[347726659,1736083833783,-4056.68,0.00019726,3]
[347726660,1736083833793,-500.0,0.00019726,3]
[347726661,1736083833803,-500.0,0.00019726,3]
[347726662,1736083833813,-500.0,0.00019726,3]
[347726663,1736083833823,-167.63832415,0.000199,2]
[347726664,1736083833832,-294.00600887,0.0002,3]
[347726665,1736083833842,-864.67,0.0002,3]
[347726666,1736083833851,-500.0,0.0002,3]
[347726667,1736083833861,-500.0,0.0002,3]
[347726668,1736083833870,-500.0,0.0002,3]
[347726669,1736083833880,-500.0,0.0002,3]
[347726670,1736083833890,-500.0,0.0002,3]
[347726671,1736083833899,-976.4,0.0002,3]
[347726672,1736083833909,-500.0,0.0002,3]
[347726673,1736083833918,-500.0,0.0002,3]
[347726674,1736083833929,-500.0,0.0002,3]
[347726675,1736083833939,-500.0,0.0002,3]
[347726676,1736083833949,-500.0,0.0002,3]
[347726677,1736083833959,-211.62995152,0.0002,3]
[347726678,1736083833968,-500.0,0.0002,3]
[347726679,1736083833978,-500.0,0.0002,3]
[347726680,1736083833987,-4056.68,0.0002,3]
[347726681,1736083833997,-500.0,0.0002,3]
[347726682,1736083834007,-500.0,0.0002,3]
[347726683,1736083834016,-499.0,0.00020272,2]
[347726684,1736083834026,-864.67,0.00020273,3]
[347726685,1736083834035,-500.0,0.00020273,3]
[347726686,1736083834045,-560.25309255,0.00020273,3]
[347726687,1736083834055,-500.0,0.00020273,3]
[347726688,1736083834065,-500.0,0.00020273,3]
[347726689,1736083834075,-500.0,0.00020273,3]
[347726690,1736083834085,-976.4,0.00020273,3]
[347726691,1736083834097,-500.0,0.00020273,3]
[347726692,1736083834107,-500.0,0.00020273,3]
[347726693,1736083834117,-500.0,0.00020273,3]
[347726694,1736083834126,-500.0,0.00020273,3]
[347726695,1736083834135,-500.0,0.00020273,3]
[347726696,1736083834146,-500.0,0.00020273,3]
[347726697,1736083834157,-500.0,0.00020273,3]
[347726698,1736083834167,-4056.68,0.00020273,3]
[347726699,1736083834179,-500.0,0.00020273,3]
[347726700,1736083834190,-616.64073163,0.00020273,3]
[347726701,1736083834201,-1200.0,0.00020305,2]
[347726702,1736083834211,-1443.343,0.00020338,2]
[347726703,1736083834221,-2321.0,0.00020338,2]
[347726704,1736083834231,-289.367159,0.00020447,2]
[347726705,1736083834240,-864.67,0.00020547,3]
[347726706,1736083834250,-500.0,0.00020547,3]
[347726707,1736083834260,-500.0,0.00020547,3]
[347726708,1736083834270,-500.0,0.00020547,3]
[347726709,1736083834280,-555.56675665,0.00020547,3]
[347726710,1736083834289,-976.4,0.00020547,3]
[347726711,1736083834299,-500.0,0.00020547,3]
[347726712,1736083834309,-500.0,0.00020547,3]
[347726713,1736083834319,-500.0,0.00020547,3]
[347726714,1736083834328,-500.0,0.00020547,3]
[347726715,1736083834339,-500.0,0.00020547,3]
[347726716,1736083834349,-500.0,0.00020547,3]
[347726717,1736083834359,-500.0,0.00020547,3]
[347726718,1736083834369,-4056.68,0.00020547,3]
[347726719,1736083834379,-500.0,0.00020547,3]
[347726720,1736083834389,-420.0,0.00020709,2]
[347726721,1736083834400,-864.67,0.00020821,3]
[347726722,1736083834410,-500.0,0.00020821,3]
[347726723,1736083834419,-500.0,0.00020821,3]
[347726724,1736083834429,-500.0,0.00020821,3]
[347726725,1736083834439,-976.4,0.00020821,3]
[347726726,1736083834449,-214.41908797,0.00020821,3]
[347726727,1736083834458,-500.0,0.00020821,3]
[347726728,1736083834468,-500.0,0.00020821,3]
[347726729,1736083834478,-535.03773532,0.00020821,3]
[347726730,1736083834488,-500.0,0.00020821,3]
[347726731,1736083834496,-500.0,0.00020821,3]
[347726732,1736083834506,-500.0,0.00020821,3]
[347726733,1736083834515,-4056.68,0.00020821,3]
[347726734,1736083834525,-500.0,0.00020821,3]
[347726735,1736083834535,-864.67,0.00021095,3]
[347726736,1736083834545,-500.0,0.00021095,3]
[347726737,1736083834554,-500.0,0.00021095,3]
[347726738,1736083834564,-500.0,0.00021095,3]
[347726739,1736083834573,-976.4,0.00021095,3]
[347726740,1736083834583,-500.0,0.00021095,3]
[347726741,1736083834592,-500.0,0.00021095,3]
[347726742,1736083834602,-500.0,0.00021095,3]
[347726743,1736083834612,-500.0,0.00021095,3]
[347726744,1736083834623,-500.0,0.00021095,3]
[347726745,1736083834632,-4056.68,0.00021095,3]
[347726746,1736083834643,-500.0,0.00021095,3]
[347726747,1736083834653,-864.67,0.00021369,3]
[347726748,1736083834663,-500.0,0.00021369,3]
[347726749,1736083834673,-500.0,0.00021369,3]
[347726750,1736083834682,-500.0,0.00021369,3]
[347726751,1736083834692,-976.4,0.00021369,3]
[347726752,1736083834703,-500.0,0.00021369,3]
[347726753,1736083834713,-500.0,0.00021369,3]
[347726754,1736083834722,-500.0,0.00021369,3]
[347726755,1736083834731,-500.0,0.00021369,3]
[347726756,1736083834741,-500.0,0.00021369,3]
[347726757,1736083834750,-4056.68,0.00021369,3]
[347726758,1736083834759,-500.0,0.00021369,3]
[347726759,1736083834768,-448.817,0.000216,2]
[347726760,1736083834778,-864.67,0.00021643,3]
[347726761,1736083834788,-500.0,0.00021643,3]
[347726762,1736083834797,-500.0,0.00021643,3]
[347726763,1736083834807,-175.73222691,0.00021643,3]
[347726764,1736083834817,-976.4,0.00021643,3]
[347726765,1736083834827,-500.0,0.00021643,3]
[347726766,1736083834837,-500.0,0.00021643,3]
[347726767,1736083834847,-500.0,0.00021643,3]
[347726768,1736083834857,-500.0,0.00021643,3]
[347726769,1736083834866,-500.0,0.00021643,3]
[347726770,1736083834877,-4056.68,0.00021643,3]
[347726771,1736083834886,-500.0,0.00021643,3]
[347726772,1736083834898,-864.67,0.00021917,3]
[347726773,1736083834908,-500.0,0.00021917,3]
[347726774,1736083834918,-231.51716492,0.00021917,3]
[347726775,1736083834928,-976.4,0.00021917,3]
[347726776,1736083834938,-500.0,0.00021917,3]
[347726777,1736083834948,-500.0,0.00021917,3]
[347726778,1736083834957,-500.0,0.00021917,3]
[347726779,1736083834967,-500.0,0.00021917,3]
[347726780,1736083834976,-500.0,0.00021917,3]
[347726781,1736083834986,-4056.68,0.00021917,3]
[347726782,1736083834995,-500.0,0.00021917,3]
[347726783,1736083835004,-288.3873651,0.0002198,8]
[347726784,1736083835014,-864.67,0.00022191,3]
[347726785,1736083835024,-500.0,0.00022191,3]
[347726786,1736083835033,-976.4,0.00022191,3]
[347726787,1736083835042,-500.0,0.00022191,3]
[347726788,1736083835053,-500.0,0.00022191,3]
[347726789,1736083835063,-500.0,0.00022191,3]
[347726790,1736083835072,-500.0,0.00022191,3]
[347726791,1736083835082,-500.0,0.00022191,3]
[347726792,1736083835092,-4056.68,0.00022191,3]
[347726793,1736083835104,-500.0,0.00022191,3]
[347726794,1736083835113,-864.67,0.00022465,3]
[347726795,1736083835123,-500.0,0.00022465,3]
[347726796,1736083835133,-976.4,0.00022465,3]
[347726797,1736083835144,-500.0,0.00022465,3]
[347726798,1736083835154,-500.0,0.00022465,3]
[347726799,1736083835164,-500.0,0.00022465,3]
[347726800,1736083835176,-500.0,0.00022465,3]
[347726801,1736083835188,-500.0,0.00022465,3]
[347726802,1736083835197,-4056.68,0.00022465,3]
[347726803,1736083835206,-500.0,0.00022465,3]
[347726804,1736083835216,-11980.82213228,0.00022477,30]
[347726805,1736083835225,-195.5189044,0.00022516,2]
[347726806,1736083835234,-587.0,0.00022573,2]
[347726807,1736083835244,-2195.28902769,0.0002258,60]
[347726808,1736083835255,-192.89,0.000226,31]
[347726809,1736083835264,-192.89,0.000226,31]
[347726810,1736083835273,-192.89,0.000226,31]
[347726811,1736083835283,-192.89,0.000226,31]
[347726812,1736083835293,-192.89,0.000226,31]
[347726813,1736083835303,-192.89,0.000226,31]
[347726814,1736083835312,-192.89,0.000226,31]
[347726815,1736083835322,-192.89,0.000226,31]
[347726816,1736083835332,-192.89,0.000226,31]
[347726817,1736083835342,-192.89,0.000226,31]
[347726818,1736083835351,-192.89,0.000226,31]
[347726819,1736083835361,-192.89,0.000226,31]
[347726820,1736083835371,-192.89,0.000226,31]
[347726821,1736083835381,-192.89,0.000226,31]
[347726822,1736083835391,-192.89,0.000226,31]
[347726823,1736083835400,-192.89,0.000226,31]
[347726824,1736083835409,-1243.84880599,0.00022666,2]
[347726825,1736083835418,-3681.0242896,0.00022722,2]
[347726826,1736083835428,-864.67,0.00022739,3]
[347726827,1736083835438,-500.0,0.00022739,3]
[347726828,1736083835448,-976.4,0.00022739,3]
[347726829,1736083835458,-500.0,0.00022739,3]
[347726830,1736083835467,-500.0,0.00022739,3]
[347726831,1736083835477,-500.0,0.00022739,3]
[347726832,1736083835486,-500.0,0.00022739,3]
[347726833,1736083835496,-500.0,0.00022739,3]
[347726834,1736083835506,-4056.68,0.00022739,3]
[347726835,1736083835516,-500.0,0.00022739,3]
[347726836,1736083835526,-501.13278867,0.00022744,8]
[347726837,1736083835536,-500.0,0.00022749,2]
[347726838,1736083835546,-150.51,0.00022749,10]
[347726839,1736083835556,-150.08,0.00022749,10]
[347726840,1736083835566,-150.15,0.00022749,10]
[347726841,1736083835575,-4212.51,0.000228,14]
[347726842,1736083835585,-7441.38,0.000228,2]
[347726843,1736083835595,-9681.6,0.000228,14]
[347726844,1736083835604,-272.580152,0.00022822,7]
[347726845,1736083835615,-1686.75940411,0.00022822,2]
[347726846,1736083835625,-20757.52818675,0.00022822,2]
[347726847,1736083835635,-2409002.14062797,0.00022822,10]
[347726848,1736083835810,-9808.32731499,0.00022822,10]
[347726849,1736083835828,-500.0,0.0002,3]
[347726850,1736083835837,-349.40411303,0.00022822,10]
[347726880,1736083838293,-160.667897,0.00019178,2]
[347726882,1736083838303,-207.65226027,0.00020273,3]
[347726884,1736083838354,-292.34773973,0.00020273,3]
[347726885,1736083838365,-500.0,0.00020547,3]
[347726886,1736083838374,-500.0,0.00020821,3]
[347726887,1736083838384,-500.0,0.00021095,3]
[347726888,1736083838395,-500.0,0.00021369,3]
[347726889,1736083838404,-454.50981077,0.00021643,3]
[347726890,1736083838415,-45.49018923,0.00021643,3]
[347726891,1736083838424,-1548.9798217,0.00022822,10]
[347726892,1736083838436,-10844.60759718,0.00022822,10]
[347726894,1736083838448,-3310.09749913,0.00022822,10]
[347726903,1736083840374,-421.75159074,0.00021917,3]
[347726904,1736083840383,-29.81183246,0.00022822,10]
[347726905,1736083840436,-8186.45011645,0.00022822,10]
[347726906,1736083840498,-1054.23484276,0.00022822,10]
[347726907,1736083840509,-1354.55067164,0.00022822,10]
[347726922,1736083843546,-196622.4490801,0.00022822,10]
[347726929,1736083846310,-1200.0,0.00022822,2]
[347726930,1736083846321,-14005.96,0.00022822,10]
[347726931,1736083846333,-1391.93078907,0.00022822,10]
[347726932,1736083846427,-23833.70301369,0.00022822,10]
[347726961,1736084455903,273.551196,0.00013973,2]
[347726981,1736084968126,-945.70686,0.00017191,2]
[347726987,1736085032626,-761.48901738,0.00016849,2]
[347726988,1736085032636,-767.09498866,0.00017019,2]
[347726994,1736085032683,-940.10088872,0.00017019,2]
[347726996,1736085032692,-176.001429,0.00018214,2]
[347726998,1736085032702,-543.86051993,0.00019078,2]
[347727000,1736085032711,-1491.48963097,0.00019078,2]
[347727002,1736085032720,-500.0,0.00019173,2]
[347727004,1736085032730,-1673.0,0.00019177,2]
[347727006,1736085032739,-217.11920871,0.00019178,2]
[347727009,1736085032752,-293.78484493,0.00019178,2]
[347727011,1736085032762,-500.0,0.00019178,2]
[347727014,1736085032771,-500.0,0.00019178,2]
[347727016,1736085032781,-500.0,0.00019178,2]
[347727018,1736085032790,-500.0,0.00019178,2]
[347727020,1736085032799,-500.0,0.00019178,2]
[347727022,1736085032808,-500.0,0.00019178,2]
[347727024,1736085032817,-500.0,0.00019178,2]
[347727026,1736085032826,-500.0,0.00019178,2]
[347727028,1736085032835,-500.0,0.00019178,2]